bitfinex-derivatives/quotes_ETHF0:USTF0_20241004
["timestamp","ask_amount","ask_price","bid_price","bid_amount"]
[1728045096538,0.41803,2392.8,2392.3,0.4181]
[1728045096728,6.79,2393.8,2392.3,0.4181]
[1728045096729,3.2078,2392.9,2392.3,4.952]
[1728045096928,0.4195,2394.2,2392.3,4.952]
[1728045096929,0.41803,2392.8,2392.4,3.2078]
[1728045097134,3.2078,2393.8,2392.4,3.2078]
[1728045097329,0.41791,2393.5,2393.0,3.62578]
[1728045097530,3.2078,2394.0,2393.3,3.2078]
[1728045097925,3.2078,2394.0,2392.4,4.952]
[1728045097926,0.418,2393.0,2392.8,3.2078]
[1728045098129,3.2078,2393.7,2392.8,8.1598]
[1728045098331,0.41791,2393.5,2392.9,0.418]
[1728045098529,4.25237,2394.0,2393.3,3.2078]
[1728045098530,3.2078,2394.0,2393.3,3.2078]
[1728045099037,0.41778,2394.2,2393.7,3.2078]
[1728045099228,3.2078,2394.8,2393.7,3.2078]
[1728045099432,3.2078,2394.8,2394.0,3.2078]
[1728045099732,3.2078,2394.8,2393.7,4.952]
[1728045099733,0.41773,2394.5,2394.4,3.2078]
[1728045099927,3.2078,2395.0,2394.4,3.2078]
[1728045100131,1.04402,2395.2,2394.5,0.41771]
[1728045100132,0.41761,2395.2,2394.5,0.41771]
[1728045100337,3.2078,2395.3,2394.7,3.2078]
[1728045100533,0.41767,2394.9,2394.7,7.7403]
[1728045100836,0.41782,2394.0,2393.5,3.2078]
[1728045101032,3.2078,2393.8,2393.5,4.952]
[1728045101231,0.41788,2393.6,2393.5,4.952]
[1728045101439,0.91797138,2393.6,2393.5,4.952]
[1728045101834,0.50009138,2393.6,2393.5,4.952]
[1728045102032,0.50009138,2393.6,2393.5,4.5325]
[1728045102229,0.50009138,2393.6,2393.5,15.128]
[1728045102429,0.50009138,2393.6,2393.5,4.5325]
[1728045103731,0.50009138,2393.6,2392.3,0.92341861]
[1728045103940,0.41792,2393.4,2393.0,3.62578]
[1728045104129,1.54483138,2393.6,2393.0,7.7403]
[1728045104338,0.41796,2393.2,2393.0,7.7403]
[1728045104642,0.50009138,2393.3,2393.0,8.15827]
[1728045104843,0.50009138,2393.3,2393.0,7.7403]
[1728045105146,0.50009138,2393.3,2393.1,0.41796]
[1728045105438,0.50009138,2393.2,2393.0,7.3208]
[1728045105640,0.50009138,2393.2,2393.1,0.41797]
[1728045105833,3.2078,2394.3,2393.1,14.21080862]
[1728045106039,6.79,2394.7,2393.1,7.24020862]
[1728045106040,3.2078,2393.7,2393.1,7.24020862]
[1728045106338,1.04449,2394.1,2393.4,3.2078]
[1728045106532,6.79,2394.7,2393.4,4.03240862]
[1728045106533,3.2078,2393.9,2393.4,4.03240862]
[1728045106734,1.04453,2394.0,2393.4,4.03240862]
[1728045107045,0.41789,2393.6,2393.4,3.61290862]
[1728045107362,0.41801,2392.9,2392.5,3.2078]
[1728045107638,3.2078,2393.3,2392.5,3.2078]
[1728045107837,3.2078,2393.3,2392.5,3.61290862]
[1728045108046,3.62574,2393.3,2392.7,0.41803]
[1728045108239,0.41796,2393.2,2392.9,3.2078]
[1728045108445,3.2078,2393.3,2392.7,3.61290862]
[1728045108737,3.2078,2393.7,2392.9,3.2078]
[1728045108940,0.41795,2393.3,2392.9,6.40120862]
[1728045109136,3.2078,2393.7,2392.9,6.40120862]
[1728045109647,1.04458,2394.0,2392.9,6.40120862]
[1728045109648,3.2078,2394.0,2392.9,6.40120862]
[1728045109848,3.2078,2393.5,2392.9,3.19340862]
[1728045110141,3.2078,2393.5,2392.9,2.77390862]
[1728045110142,0.41796,2393.2,2392.9,2.77390862]
[1728045110346,1.0448,2393.4,2392.9,2.77390862]
[1728045110347,0.41797,2393.1,2392.9,2.77390862]
[1728045110732,3.2078,2393.1,2392.5,3.2078]
[1728045111240,0.41804,2392.7,2392.5,5.98170862]
[1728045111543,3.2078,2393.1,2391.5,1.04561]
[1728045111544,0.41812,2392.2,2392.1,3.2078]
[1728045111853,1.04512,2392.7,2391.7,3.2078]
[1728045112140,0.41808,2392.5,2392.0,0.41816]
[1728045112350,0.41808,2392.5,2392.2,3.2078]
[1728045112733,0.41808,2392.5,2392.2,5.98170862]
[1728045112939,3.2078,2392.8,2392.2,5.98170862]
[1728045113240,40.8,2393.5,2392.2,5.98170862]
[1728045113241,3.2078,2393.1,2392.2,5.98170862]
[1728045113544,0.41808,2392.5,2392.2,5.98170862]
[1728045113742,0.41811,2392.3,2392.2,5.56220862]
[1728045114041,0.41809,2392.4,2392.2,2.35440862]
[1728045114244,0.41805,2392.7,2392.2,5.98032862]
[1728045114453,4.25279,2393.0,2392.2,5.56220862]
[1728045114748,1.04506,2392.8,2392.2,5.56220862]
[1728045114957,3.2078,2393.0,2392.2,5.56220862]
[1728045115239,0.41805,2392.7,2392.2,5.98032862]
[1728045115447,1.0451,2392.7,2392.2,2.35440862]
[1728045115745,0.41808,2392.5,2392.2,2.35440862]
[1728045115948,0.4181,2392.4,2392.2,2.35440862]
[1728045116238,3.2078,2392.8,2392.2,2.35440862]
[1728045116439,1.04491,2393.2,2392.7,3.2078]
[1728045116640,0.41801,2392.9,2392.7,5.56220862]
[1728045116839,0.41799,2393.0,2392.7,5.56220862]
[1728045117648,0.41794,2393.3,2392.8,4.1792]
[1728045117939,0.41791,2393.5,2393.1,3.2078]
[1728045118246,0.41791,2393.5,2393.1,3.62577]
[1728045118448,0.41793,2393.4,2393.1,5.56220862]
[1728045118651,0.41791,2393.5,2393.1,5.56220862]
[1728045119143,0.41787,2393.7,2393.2,0.41793]
[1728045119348,1.04449,2394.1,2393.3,0.41793]
[1728045119543,0.41786,2393.8,2393.4,3.2078]
[1728045119741,3.2078,2394.2,2393.4,5.56220862]
[1728045120044,3.2078,2394.5,2393.7,3.2078]
[1728045120442,3.2078,2394.2,2393.7,2.35440862]
[1728045120637,0.41799,2393.0,2392.9,3.2078]
[1728045120839,1.04462,2393.8,2393.1,0.41796]
[1728045121044,1.04462,2393.8,2393.2,3.2078]
[1728045121045,0.41791,2393.5,2393.2,3.2078]
[1728045121247,3.2078,2393.9,2393.2,3.2078]
[1728045121551,0.41785,2393.8,2393.5,3.2078]
[1728045121747,3.2078,2394.5,2393.5,3.2078]
[1728045121941,0.41788,2393.6,2393.5,1.51699862]
[1728045122446,4.1784,2393.5,2392.5,3.2078]
[1728045122639,0.41799,2393.0,2392.9,3.2078]
[1728045122846,0.41799,2393.0,2392.5,1.51699862]
[1728045122847,0.41805,2392.6,2392.5,4.72479862]
[1728045123147,0.41805,2392.6,2392.5,1.51699862]
[1728045123636,0.41805,2392.6,2392.5,1.09749862]
[1728045124646,0.4181,2392.4,2391.9,0.41817]
[1728045124949,1.04515,2392.6,2392.1,3.62594]
[1728045124950,0.41805,2392.6,2392.1,3.62594]
[1728045125250,3.2078,2392.7,2392.1,3.2078]
[1728045125444,3.62584,2392.7,2392.2,0.41812]
[1728045125645,3.2078,2392.7,2392.2,7.09749862]
[1728045125844,1.04476,2393.5,2392.4,3.2078]
[1728045126039,0.41802,2392.8,2392.7,3.2078]
[1728045126247,0.41802,2392.8,2392.7,1.09749862]
[1728045126548,0.418,2392.9,2392.7,1.09749862]
[1728045126749,3.2078,2393.1,2392.7,1.09749862]
[1728045127052,4.52,2393.8,2393.0,3.2078]
[1728045127053,1.04466,2393.7,2393.0,3.2078]
[1728045127262,4.25243,2393.8,2393.0,3.2078]
[1728045127263,0.41797,2393.1,2393.0,3.2078]
[1728045127446,1.04513,2392.7,2392.0,3.2078]
[1728045127747,0.41813,2392.2,2392.0,3.2078]
[1728045127952,1.04501,2392.9,2392.0,4.72345862]
[1728045127953,0.41809,2392.4,2392.0,4.72345862]
[1728045128248,0.41809,2392.4,2392.0,1.09749862]
[1728045128443,3.2078,2392.7,2392.2,3.2078]
[1728045128641,0.41804,2392.7,2392.2,3.2078]
[1728045128854,0.41801,2392.9,2392.4,0.41807]
[1728045129146,3.2078,2393.0,2392.3,3.2078]
[1728045129346,0.41809,2392.4,2392.3,4.30529862]
[1728045129555,0.41809,2392.4,2392.3,1.09749862]
[1728045129747,2.09005,2392.9,2392.3,5.27749862]
[1728045129948,0.41809,2392.4,2392.3,1.09749862]
[1728045130252,3.2078,2393.0,2392.3,1.09749862]
[1728045130562,3.2078,2393.0,2392.5,3.2078]
[1728045131149,3.2078,2393.0,2392.5,0.67799862]
[1728045131657,4.78126852,2393.8,2392.9,3.2078]
[1728045131658,7.98906852,2393.8,2392.9,3.2078]
[1728045131842,0.41799,2393.0,2392.9,3.2078]
[1728045132050,1.04488,2393.3,2392.9,3.88579862]
[1728045132349,3.2078,2393.8,2392.9,3.88579862]
[1728045132943,1.04466,2393.7,2392.9,3.88579862]
[1728045133151,0.41799,2393.0,2392.9,0.25849862]
[1728045133858,0.41794,2393.3,2392.9,10.85569862]
[1728045134044,3.62571,2393.5,2393.1,0.41796]
[1728045134249,3.2078,2393.5,2393.1,0.25849862]
[1728045134450,0.41795,2393.2,2393.1,0.25849862]
[1728045135150,1.04484,2393.3,2392.5,3.2078]
[1728045135352,3.2078,2393.2,2392.5,3.2078]
[1728045135550,3.2078,2393.2,2392.5,3.46629862]
[1728045135746,0.41798,2393.1,2392.6,0.41804]
[1728045136050,3.2078,2393.6,2392.5,3.46629862]
[1728045136252,0.41796,2393.2,2392.8,0.41801]
[1728045136452,0.41794,2393.3,2392.9,0.418]
[1728045136755,0.41796,2393.2,2392.8,3.46629862]
[1728045136955,3.2078,2393.6,2392.8,3.46629862]
[1728045137148,3.2078,2393.0,2391.6,3.2078]
[1728045137347,3.2078,2393.0,2392.1,0.41813]
[1728045137348,0.41807,2392.5,2392.1,0.41813]
[1728045137550,3.2078,2393.0,2392.2,3.2078]
[1728045137750,0.41806,2392.6,2392.2,3.2078]
[1728045137951,1.04507,2392.8,2392.2,3.46629862]
[1728045138159,0.4181,2392.4,2392.2,3.46629862]
[1728045138360,0.41811,2392.3,2392.2,0.25849862]
[1728045138650,1.0452,2392.5,2392.2,0.25849862]
[1728045138854,9.03407852,2393.0,2392.2,0.25849862]
[1728045139046,0.41803,2392.8,2392.3,0.4181]
[1728045139246,3.2078,2393.0,2392.2,0.25849862]
[1728045139458,0.41809,2392.5,2392.2,0.25849862]
[1728045139653,1.04506,2392.8,2392.2,0.25849862]
[1728045139955,3.2078,2392.7,2392.2,0.25849862]
[1728045140258,3.2078,2393.1,2392.5,3.2078]
[1728045140456,4.78126852,2393.4,2392.9,0.418]
[1728045140457,0.41793,2393.4,2392.9,0.418]
[1728045140758,3.2078,2393.5,2392.9,0.25849862]
[1728045140954,3.2078,2393.6,2392.9,0.25849862]
[1728045141145,1.04487,2393.3,2392.9,0.25849862]
[1728045141348,4.25267,2393.3,2392.4,3.2078]
[1728045141545,3.2078,2393.3,2392.4,3.2078]
[1728045141761,3.2078,2393.3,2392.4,3.46629862]
[1728045141944,3.2078,2393.3,2392.4,3.88437862]
[1728045141945,0.41801,2392.9,2392.4,3.88437862]
[1728045142150,8.77266,2393.3,2392.4,3.46629862]
[1728045142349,0.41805,2392.7,2392.4,3.46629862]
[1728045142560,3.2078,2393.0,2392.4,0.25849862]
[1728045142761,0.41807,2392.5,2392.4,0.25849862]
[1728045143249,0.41811,2392.3,2392.0,3.2078]
[1728045143455,0.4181,2392.4,2392.0,3.46629862]
[1728045143652,3.2078,2392.7,2392.0,3.46629862]
[1728045144370,0.41803,2392.8,2392.2,0.41812]
[1728045144658,3.2078,2393.0,2392.0,3.46629862]
[1728045144659,0.41808,2392.5,2392.0,3.46629862]
[1728045144855,1.04511,2392.7,2392.0,3.46629862]
[1728045145051,4.25279,2393.0,2392.0,3.46629862]
[1728045145255,3.2078,2392.7,2392.0,3.46629862]
[1728045145454,1.04516,2392.6,2392.0,3.46629862]
[1728045145647,3.2078,2392.7,2392.0,3.46629862]
[1728045145853,0.41809,2392.5,2392.0,3.46629862]
[1728045146054,1.04514,2392.6,2392.0,0.25849862]
[1728045146261,4.52,2392.6,2392.0,0.25849862]
[1728045146560,0.41812,2392.3,2392.0,0.25849862]
[1728045147059,3.2078,2392.4,2392.0,0.25849862]
[1728045147259,3.6259,2392.4,2392.0,3.46629862]
[1728045147454,3.2078,2392.4,2392.0,3.46629862]
[1728045147653,0.41812,2392.3,2392.0,0.25849862]
[1728045147958,4.78126852,2392.6,2392.3,0.41811]
[1728045148263,0.41803,2392.8,2392.3,3.2078]
[1728045148264,5.19929852,2392.8,2392.3,3.2078]
[1728045148466,0.41802,2392.9,2392.3,3.88439862]
[1728045148762,0.418,2392.9,2392.3,3.46629862]
[1728045148963,3.2078,2393.0,2392.3,3.46629862]
[1728045149150,1.04501,2392.9,2392.3,3.46629862]
[1728045149354,0.41809,2392.4,2392.3,0.25849862]
[1728045149554,4.5981,2392.4,2391.9,3.2078]
[1728045149758,1.04514,2392.6,2391.9,3.46629862]
[1728045149960,3.2078,2392.4,2391.9,0.25849862]
[1728045150165,3.2078,2392.4,2391.2,3.2078]
[1728045150166,1.46359,2392.0,2391.2,3.2078]
[1728045150352,0.41825,2391.5,2391.2,3.46629862]
[1728045150550,0.41825,2391.5,2391.2,0.25849862]
[1728045150753,3.2078,2391.4,2390.5,0.4177]
[1728045150961,3.2078,2391.4,2390.5,0.25849862]
[1728045150962,3.2078,2390.6,2390.5,0.25849862]
[1728045151157,3.2078,2390.6,2389.6,0.57276444]
[1728045151158,7.7278,2390.7,2389.8,0.41853]
[1728045151357,4.52,2390.3,2389.8,0.41853]
[1728045151654,7.7278,2390.7,2389.8,0.25849862]
[1728045152057,0.41849,2390.1,2389.8,0.25849862]
[1728045152456,4.52,2390.3,2389.8,0.25849862]
[1728045152457,0.41853,2389.9,2389.8,0.25849862]
[1728045152650,4.78126852,2390.6,2389.8,0.25849862]
[1728045152858,3.2078,2390.7,2389.8,0.25849862]
[1728045153062,0.41847,2390.3,2389.8,0.25849862]
[1728045153259,3.2078,2390.7,2389.8,0.25849862]
[1728045153560,5.19056852,2390.8,2389.8,3.46629862]
[1728045153761,4.78126852,2390.8,2390.4,0.41843]
[1728045154061,4.78126852,2390.8,2390.1,3.2078]
[1728045154062,4.78126852,2390.8,2390.2,0.41846]
[1728045154267,4.78126852,2390.8,2390.2,0.25849862]
[1728045154764,4.78126852,2390.8,2390.3,0.41845]
[1728045155258,4.78126852,2390.8,2390.3,0.25849862]
[1728045156559,7.98906852,2390.8,2390.3,0.25849862]
[1728045156757,4.52,2390.4,2389.6,3.2078]
[1728045156959,4.52,2390.4,2389.6,0.25849862]
[1728045157167,3.2078,2390.5,2390.0,0.41851]
[1728045157461,5.19806852,2390.8,2390.0,0.41851]
[1728045157462,5.61644852,2390.8,2390.0,0.67699862]
[1728045157660,5.19806852,2390.8,2390.0,0.25849862]
[1728045157862,5.19806852,2390.8,2389.0,3.2078]
[1728045157863,7.7278,2390.1,2389.0,3.2078]
[1728045158065,3.2078,2389.5,2389.0,0.25849862]
[1728045158267,4.52,2389.1,2389.0,0.25849862]
[1728045158463,4.52,2389.1,2388.6,3.2078]
[1728045158763,4.52,2389.1,2388.6,3.46629862]
[1728045158963,4.52,2388.7,2388.2,1.06244348]
[1728045159172,4.52,2388.7,2388.2,1.3209421]
[1728045159565,4.52,2388.7,2388.2,0.25849862]
[1728045159765,3.2078,2388.6,2388.2,0.25849862]
[1728045160167,3.2078,2389.1,2388.2,0.25849862]
[1728045160369,3.2078,2389.1,2388.4,3.62658]
[1728045160577,3.2078,2389.1,2388.4,3.2078]
[1728045160870,0.828,2389.4,2388.4,3.2078]
[1728045160871,3.6146,2389.4,2388.7,3.2078]
[1728045161371,3.2078,2389.1,2388.7,3.46629862]
[1728045161568,0.82543,2389.4,2388.7,3.46629862]
[1728045161569,3.6146,2389.4,2388.7,3.46629862]
[1728045161868,4.52,2389.2,2388.7,3.46629862]
[1728045162063,7.7278,2388.8,2388.1,3.2078]
[1728045162268,4.52,2388.5,2387.5,4.27233862]
[1728045162575,7.7278,2388.5,2387.5,4.27232862]
[1728045162771,7.7278,2388.5,2387.5,3.85339862]
[1728045162973,3.2078,2388.5,2387.9,3.62667]
[1728045163177,3.2078,2388.5,2387.9,3.46629862]
[1728045163472,3.2078,2388.5,2387.9,0.25849862]
[1728045163662,0.41886,2388.0,2387.4,0.47576968]
[1728045163860,4.52,2387.9,2387.4,0.7342683]
[1728045164473,7.7278,2387.9,2387.4,0.7342683]
[1728045165177,0.4189,2387.8,2387.4,0.7342683]
[1728045165364,7.7278,2387.9,2387.4,0.47576968]
[1728045165565,0.4189,2387.8,2387.4,0.47576968]
[1728045165769,0.41895,2387.6,2387.4,0.47576968]
[1728045165973,4.188,2387.7,2387.4,0.47576968]
[1728045166179,0.41892,2387.7,2387.4,0.47576968]
[1728045166476,0.41893,2387.6,2387.4,0.47576968]
[1728045166671,4.52,2387.5,2387.4,0.47576968]
[1728045166865,9.12775,2387.5,2386.7,3.2078]
[1728045167067,7.7278,2387.2,2386.7,0.25849862]
[1728045167262,8.14681,2387.2,2386.7,0.25849862]
[1728045167479,4.52,2386.8,2386.7,0.25849862]
[1728045167668,4.52,2386.8,2386.1,3.2078]
[1728045167868,4.93907,2386.8,2386.1,0.25849862]
[1728045168179,4.52,2386.8,2386.1,3.46629862]
[1728045168478,7.7278,2387.5,2386.4,3.2078]
[1728045168679,3.2078,2387.5,2386.8,3.2078]
[1728045168981,7.7278,2387.5,2386.4,0.25849862]
[1728045169274,7.7278,2387.5,2386.5,3.2078]
[1728045169469,0.419,2387.3,2386.5,3.62691]
[1728045169669,7.7278,2387.5,2386.5,3.46629862]
[1728045169670,0.41901,2387.2,2386.5,3.46629862]
[1728045169862,4.52,2386.8,2386.1,3.2078]
[1728045170069,3.2078,2387.2,2386.1,3.2078]
[1728045170271,3.2078,2387.2,2386.4,3.2078]
[1728045170665,3.2078,2387.2,2386.4,3.46629862]
[1728045170870,4.52,2386.7,2386.4,0.25849862]
[1728045171068,4.52,2386.7,2385.4,0.4141]
[1728045171069,0.41919,2386.2,2385.5,3.62709]
[1728045171270,4.52,2386.3,2385.5,3.46629862]
[1728045171669,0.41926,2385.8,2385.5,3.46629862]
[1728045171865,7.7278,2386.3,2385.5,3.46629862]
[1728045172300,7.7278,2386.6,2385.8,3.2078]
[1728045172576,7.7278,2386.6,2385.5,0.67778862]
[1728045172577,0.41918,2386.2,2385.5,0.67778862]
[1728045172768,3.2078,2386.5,2386.0,3.2078]
[1728045172976,3.2078,2386.5,2386.0,0.25849862]
[1728045173371,4.93917,2386.3,2386.0,0.25849862]
[1728045173669,0.41922,2386.0,2385.4,3.2078]
[1728045173872,4.52,2386.3,2385.4,3.46629862]
[1728045173873,0.41924,2385.9,2385.4,3.46629862]
[1728045174068,4.52,2385.9,2385.4,3.46629862]
[1728045174277,3.2078,2386.5,2385.4,7.65829862]
[1728045174574,0.4192,2386.1,2385.4,0.67780862]
[1728045174776,3.2078,2386.2,2385.4,0.67780862]
[1728045175076,3.2078,2386.2,2385.6,0.41927]
[1728045175270,0.41922,2386.0,2385.4,0.25849862]
[1728045175475,3.2078,2386.2,2385.4,0.25849862]
[1728045175672,3.62699,2386.2,2385.5,0.41929]
[1728045175869,3.2078,2386.2,2385.5,3.2078]
[1728045176076,3.2078,2386.6,2386.1,0.41919]
[1728045176372,3.2078,2386.6,2385.7,3.2078]
[1728045176569,3.2078,2386.6,2386.1,3.2078]
[1728045176770,3.2078,2386.6,2386.2,0.41917]
[1728045176972,3.2078,2386.6,2386.2,0.41918]
[1728045177168,3.2078,2386.6,2386.2,0.25849862]
[1728045177677,3.2078,2386.6,2386.2,0.67766862]
[1728045177879,7.7278,2386.6,2386.2,0.25849862]
[1728045178377,3.2078,2386.6,2386.2,0.25849862]
[1728045178583,0.41915,2386.4,2386.2,0.25849862]
[1728045178770,0.41913,2386.5,2386.2,0.25849862]
[1728045178969,3.2078,2386.6,2386.2,0.67766862]
[1728045179174,3.2078,2386.6,2386.2,0.25849862]
[1728045179380,0.41914,2386.4,2386.2,0.25849862]
[1728045179580,0.41913,2386.5,2386.2,0.25849862]
[1728045179778,3.2078,2386.6,2386.2,0.25849862]
[1728045180679,3.2078,2386.3,2385.8,3.2078]
[1728045180887,3.2078,2386.3,2385.8,0.25849862]
[1728045181079,4.52,2386.1,2385.8,0.25849862]
[1728045181378,3.2078,2386.3,2385.8,0.25849862]
[1728045181575,3.2078,2386.3,2385.9,0.41922]
[1728045181770,3.2078,2386.3,2385.8,0.25849862]
[1728045181972,3.2078,2386.6,2386.3,0.41915]
[1728045182175,3.2078,2387.0,2386.3,0.25849862]
[1728045182371,3.2078,2387.4,2386.6,3.2078]
[1728045182579,3.2078,2387.4,2386.9,3.2078]
[1728045182780,3.2078,2387.4,2387.1,0.41901]
[1728045183094,4.52,2387.2,2386.2,3.2078]
[1728045183390,0.20750751,2387.6,2386.5,3.2078]
[1728045183391,4.52,2386.8,2386.5,3.2078]
[1728045183577,4.52,2386.8,2386.2,3.46629862]
[1728045183882,4.93913,2386.5,2386.2,0.25849862]
[1728045184180,3.2078,2386.7,2386.2,0.25849862]
[1728045184387,3.2078,2386.7,2386.4,0.41913]
[1728045184683,8.77544,2387.0,2386.3,3.2078]
[1728045184890,0.41908,2386.8,2386.4,3.62694]
[1728045185182,3.2078,2387.0,2386.4,3.2078]
[1728045185487,3.62679,2387.3,2386.9,0.41905]
[1728045185689,4.52,2387.0,2386.3,3.2078]
[1728045186095,0.41906,2386.9,2386.5,0.41912]
[1728045186388,3.2078,2386.9,2386.3,3.46629862]
[1728045186680,4.52,2386.7,2386.3,0.25849862]
[1728045186881,0.41908,2386.8,2386.3,0.25849862]
[1728045187089,3.2078,2386.9,2386.6,0.4191]
[1728045187090,0.41906,2386.9,2386.6,0.4191]
[1728045187285,4.52,2387.0,2386.6,3.6269]
[1728045187590,0.41909,2386.7,2386.6,3.46629862]
[1728045187885,0.41916,2386.4,2386.2,3.2078]
[1728045188188,0.41907,2386.9,2386.2,0.25849862]
[1728045188484,1.04758,2387.1,2386.2,0.25849862]
[1728045188684,7.7278,2387.3,2386.2,0.25849862]
[1728045188996,1.04751,2387.2,2386.7,3.2078]
[1728045189179,0.41902,2387.1,2386.9,0.41905]
[1728045189378,3.2078,2387.3,2387.1,0.41901]
[1728045189581,1.04737,2387.6,2386.7,4.25551]
[1728045189783,3.2078,2387.9,2387.0,3.2078]
[1728045189976,0.41902,2387.1,2386.7,0.67757862]
[1728045190182,4.52,2387.7,2386.8,4.1896]
[1728045190381,0.41897,2387.4,2387.0,3.2078]
[1728045190583,1.04733,2387.6,2387.0,3.2078]
[1728045190781,0.41902,2387.1,2387.0,0.25849862]
[1728045190978,0.4191,2386.7,2386.3,3.2078]
[1728045191178,0.4191,2386.7,2386.4,0.41913]
[1728045191383,0.4191,2386.7,2386.3,3.46629862]
[1728045191384,4.52,2386.9,2386.3,7.65669862]
[1728045191579,1.04739,2387.5,2386.6,3.2078]
[1728045191780,4.52,2387.6,2386.9,3.2078]
[1728045191993,1.04728,2387.8,2386.9,3.2078]
[1728045192192,3.62682,2387.1,2386.9,0.25849862]
[1728045192489,0.41904,2387.0,2386.9,3.46629862]
[1728045192790,1.0476,2387.0,2386.4,3.2078]
[1728045192980,0.41912,2386.6,2386.4,3.2078]
[1728045193187,0.41912,2386.6,2386.4,3.88543862]
[1728045193487,5.56767,2386.9,2386.4,3.46629862]
[1728045193488,0.41912,2386.5,2386.4,3.46629862]
[1728045193683,4.52,2386.6,2386.4,0.25849862]
[1728045193998,4.52,2386.6,2385.8,3.2078]
[1728045194189,4.52,2386.2,2385.8,0.25849862]
[1728045194486,0.41923,2385.9,2385.8,0.25849862]
[1728045194687,0.4193,2385.6,2385.1,3.62715]
[1728045194881,0.4193,2385.6,2385.0,0.3986]
[1728045194882,4.52,2385.2,2385.0,0.25849862]
[1728045195286,7.7278,2385.5,2385.0,0.25849862]
[1728045195481,4.52,2385.5,2385.0,0.25849862]
[1728045195895,0.41934,2385.3,2385.0,0.25849862]
[1728045196096,4.52,2385.1,2384.3,3.6064]
[1728045196283,4.52,2385.1,2384.8,0.41941]
[1728045196596,4.52,2385.4,2384.9,3.2078]
[1728045197089,0.41939,2385.0,2384.9,0.25849862]
[1728045197289,4.52,2385.4,2384.9,3.46629862]
[1728045197484,4.52,2385.4,2385.0,0.41939]
[1728045197687,4.25593,2385.8,2385.1,0.41937]
[1728045197688,0.41927,2385.7,2385.1,0.41937]
[1728045197890,0.4193,2385.5,2385.1,0.41936]
[1728045198093,0.4193,2385.5,2385.1,0.25849862]
[1728045198094,0.41935,2385.2,2385.1,0.25849862]
[1728045198393,3.2078,2385.4,2385.1,0.25849862]
[1728045198692,3.2078,2385.4,2384.3,1.44735]
[1728045198693,1.0484,2385.2,2384.3,0.3986]
[1728045198888,0.41942,2384.8,2384.3,0.67799862]
[1728045199089,0.41942,2384.8,2384.4,0.41949]
[1728045199291,4.52,2385.0,2384.3,0.25849862]
[1728045199588,3.2078,2385.1,2384.3,0.25849862]
[1728045199589,4.52,2384.6,2384.3,0.25849862]
[1728045199789,4.52,2384.9,2384.3,0.25849862]
[1728045199988,1.0483,2385.5,2384.8,3.2078]
[1728045199989,3.2078,2385.5,2384.8,3.2078]
[1728045200198,3.2078,2385.5,2384.6,0.41945]
[1728045200199,0.41939,2385.1,2384.6,0.41945]
[1728045200494,0.41941,2384.9,2384.5,0.41947]
[1728045200687,0.41941,2384.9,2384.4,3.46629862]
[1728045200688,4.52,2385.0,2384.4,3.46629862]
[1728045200887,4.52,2384.6,2384.4,0.25849862]
[1728045201088,4.93946,2384.6,2384.4,0.25849862]
[1728045201297,0.41948,2384.5,2384.4,0.25849862]
[1728045201485,8.7136,2384.6,2383.8,3.2078]
[1728045201689,4.52,2384.3,2383.8,0.25849862]
[1728045201889,4.52,2384.6,2383.8,3.46629862]
[1728045202193,0.41949,2384.5,2384.0,0.41956]
[1728045202401,4.93947,2384.6,2384.1,0.41953]
[1728045202596,4.9592,2385.0,2384.0,0.25849862]
[1728045202795,0.41944,2384.7,2384.3,0.4195]
[1728045203100,4.9294,2385.3,2384.5,3.2078]
[1728045203291,4.52,2385.3,2385.0,0.41938]
[1728045203491,4.52,2385.3,2384.5,1.04866]
[1728045203492,4.52,2385.3,2384.6,3.2078]
[1728045203694,4.52,2385.7,2384.9,3.2078]
[1728045203887,0.41928,2385.6,2385.2,0.41934]
[1728045204089,0.41926,2385.7,2385.4,0.41931]
[1728045204300,4.52,2385.7,2385.2,3.46629862]
[1728045204498,4.93933,2385.3,2385.2,0.25849862]
[1728045204693,4.93933,2385.3,2384.6,0.41945]
[1728045204694,0.41939,2385.0,2384.6,0.41945]
[1728045204889,4.52,2385.0,2384.4,3.2078]
[1728045205095,0.41941,2384.9,2384.8,3.2078]
[1728045205394,4.52,2385.0,2384.4,3.46629862]
[1728045205596,3.2078,2385.5,2384.7,3.2078]
[1728045205597,0.4389,2385.5,2384.7,3.2078]
[1728045205789,0.41927,2385.7,2385.3,0.41933]
[1728045205993,4.52,2385.8,2385.0,3.2078]
[1728045206190,0.41929,2385.6,2385.2,0.41934]
[1728045206390,0.41932,2385.4,2385.1,0.41937]
[1728045206588,4.93931,2385.5,2385.1,0.67786862]
[1728045206896,4.52,2385.8,2385.3,3.2078]
[1728045207091,0.41932,2385.4,2385.3,3.2078]
[1728045207291,4.93931,2385.5,2385.3,0.25849862]
[1728045207596,5.56826,2385.5,2385.0,3.2078]
[1728045207800,4.52,2385.2,2385.0,0.25849862]
[1728045208011,0.41937,2385.1,2385.0,0.25849862]
[1728045208297,4.52,2385.2,2385.0,0.25849862]
[1728045208503,0.41932,2385.4,2385.0,3.88568862]
[1728045208703,3.2078,2386.0,2385.0,3.88568862]
[1728045208704,0.41925,2385.8,2385.4,0.41932]
[1728045208894,4.93928,2385.6,2385.4,0.25849862]
[1728045209094,4.93928,2385.6,2384.5,0.4152]
[1728045209095,4.52,2385.6,2384.8,3.2078]
[1728045209299,4.52,2385.2,2384.6,1.04865]
[1728045209498,4.93931,2385.5,2384.9,3.2078]
[1728045209699,4.93931,2385.5,2385.2,3.62714]
[1728045209700,4.52,2385.5,2385.2,3.62714]
[1728045209915,0.41935,2385.2,2384.8,3.2078]
[1728045210106,4.52,2385.1,2384.8,0.25849862]